fUST/lending_fUST_20250608
["ID","MTS","AMOUNT","RATE_DAILY","PERIOD"]
[364989143,1749384663124,-158.6873432,0.00023699,2]
[364989144,1749384663134,-573.126752,0.00023699,2]
[364989145,1749384663145,-158.6873432,0.00023699,2]
[364989146,1749384663156,-176.7524085,0.00023699,2]
[364989147,1749384663167,-573.126752,0.00023699,2]
[364989148,1749384663178,-158.6873432,0.00023699,2]
[364989149,1749384663189,-573.126752,0.00023699,2]
[364989150,1749384663200,-176.7524085,0.00023699,2]
[364989151,1749384663211,-158.6873432,0.00023699,2]
[364989152,1749384663221,-573.126752,0.00023699,2]
[364989153,1749384663233,-158.6873432,0.00023699,2]
[364989154,1749384663244,-573.126752,0.00023699,2]
[364989155,1749384663255,-304.4243004,0.00023699,2]
[364989156,1749384663266,-578.8605627,0.00023699,2]
[364989157,1749384663277,-153.0,0.00023699,2]
[364989158,1749384663288,-153.0,0.00023699,2]
[364989159,1749384663298,-153.0,0.00023699,2]
[364989160,1749384663309,-153.0,0.00023699,2]
[364989161,1749384663319,-153.0,0.00023699,2]
[364989162,1749384663330,-153.0,0.00023699,2]
[364989163,1749384663340,-153.0,0.00023699,2]
[364989164,1749384663350,-153.0,0.00023699,2]
[364989165,1749384663361,-153.0,0.00023699,2]
[364989166,1749384663372,-151.0,0.00023699,7]
[364989167,1749384663381,-355290.62938604,0.000237,2]
[364989168,1749384663527,-440.0,0.00019178,2]
[364989169,1749384663537,-440.0,0.00019178,2]
[364989170,1749384663547,-159.31190443,0.00019452,2]
[364989171,1749384663647,-254.45860606,0.00019452,2]
[364989172,1749384663661,-26.22948951,0.00019452,2]
[364989173,1749384663672,-440.0,0.00019452,2]
[364989174,1749384663683,-70.69295811,0.00019726,2]
[364989175,1749384663695,-279.30704189,0.00019726,2]
[364989176,1749384663705,-440.0,0.00019726,2]
[364989177,1749384663716,-440.0,0.0002,2]
[364989178,1749384663726,-155.88,0.00020273,2]
[364989179,1749384663736,-11674.13116568,0.00022,7]
[364989180,1749384663895,-647.13957497,0.00019178,2]
[364989181,1749384663905,-440.0,0.00019178,2]
[364989182,1749384663915,-440.0,0.00019452,2]
[364989183,1749384663926,-179.84728379,0.00022,7]
[364989184,1749384663936,-4299.69242337,0.0002272,3]
[364989185,1749384664721,164.570952,0.00013699,2]
[364989202,1749385387679,10000.0,0.00025,120]
[364989204,1749385633597,3300.0,0.00025479,120]
[364989217,1749385745460,164.570952,0.00013699,2]
[364989254,1749385831793,-268.51,0.00018347,2]
[364989256,1749385831804,-300.0,0.00018483,2]
[364989257,1749385831814,-300.0,0.00018483,2]
[364989259,1749385831823,-300.0,0.00018483,2]
[364989261,1749385831833,-240.0,0.00018483,2]
[364989262,1749385831842,-300.0,0.00018483,2]
[364989263,1749385831852,-249.0003264,0.00018484,2]
[364989264,1749385831957,-24650.9996736,0.00018484,2]
[364989265,1749385831966,-221.28806241,0.00019078,2]
[364989266,1749385831976,-500.0,0.00019173,2]
[364989267,1749385831986,-537.978401,0.00019173,2]
[364989268,1749385831996,-500.0,0.00019173,2]
[364989269,1749385832005,-500.0,0.00019173,2]
[364989270,1749385832015,-500.0,0.00019173,2]
[364989271,1749385832026,-510.98101624,0.00019173,2]
[364989272,1749385832036,-160.0,0.00019177,2]
[364989273,1749385832046,-500.0,0.00019177,2]
[364989274,1749385832056,-500.0,0.00019177,2]
[364989275,1749385832066,-215.20401799,0.00019177,2]
[364989277,1749385832078,-500.0,0.00019177,2]
[364989279,1749385832088,-437.00366732,0.00019177,2]
[364989280,1749385832098,-458.29636116,0.00019178,2]
[364989281,1749385832108,-440.77448568,0.00019178,2]
[364989282,1749385832117,-440.0,0.00019178,2]
[364989283,1749385832127,-440.0,0.00019178,2]
[364989284,1749385832136,-440.0,0.00019178,2]
[364989285,1749385832146,-420.0,0.00019178,2]
[364989286,1749385832156,-440.0,0.00019178,2]
[364989287,1749385832166,-440.0,0.00019178,2]
[364989288,1749385832177,-440.0,0.00019178,2]
[364989289,1749385832187,-430.94314449,0.00019178,2]
[364989290,1749385832198,-440.0,0.00019178,2]
[364989291,1749385832207,-393.14394099,0.00019178,2]
[364989292,1749385832219,-588.92170748,0.00019178,2]
[364989293,1749385832230,-330.02517784,0.00019178,2]
[364989294,1749385832240,-440.0,0.00019178,2]
[364989295,1749385832250,-440.0,0.00019178,2]
[364989296,1749385832259,-440.0,0.00019178,2]
[364989297,1749385832269,-440.0,0.00019178,2]
[364989298,1749385832279,-440.0,0.00019178,2]
[364989299,1749385832291,-414.73531558,0.00019178,2]
[364989300,1749385832302,-440.0,0.00019178,2]
[364989301,1749385832314,-440.0,0.00019178,2]
[364989302,1749385832324,-440.0,0.00019178,2]
[364989303,1749385832335,-440.0,0.00019178,2]
[364989304,1749385832349,-440.0,0.00019178,2]
[364989305,1749385832359,-407.12208221,0.00019178,2]
[364989306,1749385832370,-473.0,0.00019178,2]
[364989307,1749385832380,-403.63157636,0.00019178,2]
[364989308,1749385832391,-440.0,0.00019178,2]
[364989309,1749385832400,-440.0,0.00019178,2]
[364989310,1749385832410,-440.0,0.00019178,2]
[364989311,1749385832556,-317.10424931,0.00019178,2]
[364989312,1749385832567,-440.0,0.00019178,2]
[364989313,1749385832578,-440.0,0.00019178,2]
[364989314,1749385832588,-440.0,0.00019178,2]
[364989315,1749385832599,-413.11681066,0.00019178,2]
[364989316,1749385832609,-371.80143351,0.00019178,2]
[364989317,1749385832619,-440.0,0.00019178,2]
[364989318,1749385832628,-440.0,0.00019178,2]
[364989319,1749385832640,-404.25399972,0.00019178,2]
[364989320,1749385832651,-279.33182109,0.00019178,2]
[364989321,1749385832660,-440.0,0.00019178,2]
[364989322,1749385832670,-422.4930032,0.00019178,2]
[364989323,1749385832681,-440.0,0.00019178,2]
[364989324,1749385832690,-440.0,0.00019178,2]
[364989325,1749385832700,-440.0,0.00019178,2]
[364989326,1749385832711,-440.0,0.00019178,2]
[364989327,1749385832720,-440.0,0.00019178,2]
[364989328,1749385832730,-440.0,0.00019178,2]
[364989329,1749385832741,-420.0,0.00019178,2]
[364989330,1749385832751,-440.0,0.00019178,2]
[364989331,1749385832761,-430.0,0.00019178,2]
[364989332,1749385832771,-573.11054817,0.00019178,2]
[364989333,1749385832780,-440.0,0.00019178,2]
[364989334,1749385832790,-440.0,0.00019178,2]
[364989335,1749385832800,-578.4862052,0.00019178,2]
[364989336,1749385832810,-440.0,0.00019178,2]
[364989337,1749385832821,-400.0,0.00019178,2]
[364989338,1749385832832,-440.0,0.00019178,2]
[364989339,1749385832843,-400.0,0.00019178,2]
[364989340,1749385832852,-400.0,0.00019178,2]
[364989341,1749385832862,-440.0,0.00019178,2]
[364989342,1749385832872,-165.11026315,0.00019178,2]
[364989343,1749385832882,-440.0,0.00019178,2]
[364989344,1749385832893,-482.03,0.00019178,2]
[364989345,1749385832902,-440.0,0.00019178,2]
[364989346,1749385832912,-401.06812258,0.00019178,2]
[364989347,1749385832923,-400.0,0.00019178,2]
[364989348,1749385832935,-400.0,0.00019178,2]
[364989349,1749385832945,-203.5827555,0.00019178,2]
[364989350,1749385832955,-430.0,0.00019178,2]
[364989351,1749385832965,-430.0,0.00019178,2]
[364989352,1749385832975,-440.0,0.00019178,2]
[364989353,1749385832985,-440.0,0.00019178,2]
[364989354,1749385832994,-440.0,0.00019178,2]
[364989355,1749385833005,-402.088983,0.00019178,2]
[364989356,1749385833015,-440.0,0.00019178,2]
[364989357,1749385833024,-440.0,0.00019178,2]
[364989358,1749385833035,-416.11702635,0.00019178,2]
[364989359,1749385833045,-440.0,0.00019178,2]
[364989360,1749385833054,-440.0,0.00019178,2]
[364989361,1749385833064,-300.0,0.00019178,2]
[364989362,1749385833074,-440.0,0.00019178,2]
[364989363,1749385833084,-440.0,0.00019178,2]
[364989364,1749385833093,-440.55814996,0.00019178,2]
[364989365,1749385833102,-440.0,0.00019178,2]
[364989366,1749385833112,-440.0,0.00019178,2]
[364989367,1749385833122,-440.0,0.00019178,2]
[364989368,1749385833132,-379.16131574,0.00019178,2]
[364989369,1749385833142,-440.0,0.00019178,2]
[364989370,1749385833152,-440.0,0.00019178,2]
[364989371,1749385833162,-442.71679719,0.00019178,2]
[364989372,1749385833173,-440.0,0.00019178,2]
[364989373,1749385833183,-440.0,0.00019178,2]
[364989374,1749385833193,-440.0,0.00019178,2]
[364989375,1749385833204,-430.0,0.00019178,2]
[364989376,1749385833214,-440.0,0.00019178,2]
[364989377,1749385833223,-440.0,0.00019178,2]
[364989378,1749385833233,-297.32821236,0.00019178,2]
[364989379,1749385833243,-440.0,0.00019178,2]
[364989380,1749385833252,-430.0,0.00019178,2]
[364989381,1749385833262,-440.0,0.00019178,2]
[364989382,1749385833272,-442.64456056,0.00019178,2]
[364989383,1749385833282,-440.0,0.00019178,2]
[364989384,1749385833292,-500.60080502,0.00019178,2]
[364989385,1749385833302,-444.95386273,0.00019178,2]
[364989386,1749385833312,-430.0,0.00019178,2]
[364989387,1749385833323,-440.0,0.00019178,2]
[364989388,1749385833333,-440.0,0.00019178,2]
[364989389,1749385833346,-430.0,0.00019178,2]
[364989390,1749385833356,-184.08980494,0.00019178,2]
[364989391,1749385833367,-271.96627324,0.00019178,2]
[364989392,1749385833379,-440.0,0.00019178,2]
[364989393,1749385833389,-438.58898723,0.00019178,2]
[364989394,1749385833398,-440.0,0.00019178,2]
[364989395,1749385833409,-387.77144109,0.00019178,2]
[364989396,1749385833419,-440.0,0.00019178,2]
[364989397,1749385833429,-440.0,0.00019178,2]
[364989398,1749385833440,-426.46983865,0.00019178,2]
[364989399,1749385833451,-440.0,0.00019178,2]
[364989400,1749385833461,-425.16064833,0.00019178,2]
[364989401,1749385833471,-440.0,0.00019178,2]
[364989402,1749385833481,-440.0,0.00019178,2]
[364989403,1749385833492,-440.0,0.00019178,2]
[364989404,1749385833502,-440.0,0.00019178,2]
[364989405,1749385833512,-440.0,0.00019178,2]
[364989406,1749385833522,-440.0,0.00019178,2]
[364989407,1749385833532,-575.51440866,0.00019178,2]
[364989408,1749385833542,-440.0,0.00019178,2]
[364989409,1749385833552,-557.72860522,0.00019178,2]
[364989410,1749385833563,-395.11338876,0.00019178,2]
[364989411,1749385833573,-440.0,0.00019178,2]
[364989412,1749385833582,-440.0,0.00019178,2]
[364989413,1749385833592,-227.19952512,0.00019178,2]
[364989414,1749385833602,-372.64623599,0.00019178,2]
[364989415,1749385833613,-427.44700746,0.00019178,2]
[364989416,1749385833623,-168.95824352,0.00019178,2]
[364989417,1749385833634,-444.24529464,0.00019178,2]
[364989418,1749385833645,-440.0,0.00019178,2]
[364989419,1749385833655,-440.0,0.00019178,2]
[364989420,1749385833666,-300.46151265,0.00019178,2]
[364989421,1749385833676,-400.0,0.00019178,2]
[364989422,1749385833686,-431.54354014,0.00019178,2]
[364989423,1749385833697,-440.0,0.00019178,2]
[364989424,1749385833707,-427.79140019,0.00019178,2]
[364989425,1749385833718,-440.0,0.00019178,2]
[364989426,1749385833728,-440.0,0.00019178,2]
[364989427,1749385833739,-312.17375379,0.00019178,2]
[364989428,1749385833749,-440.0,0.00019178,2]
[364989429,1749385833759,-440.0,0.00019178,2]
[364989430,1749385833769,-570.62,0.00019178,2]
[364989431,1749385833780,-440.0,0.00019178,2]
[364989432,1749385833790,-440.0,0.00019178,2]
[364989433,1749385833800,-440.0,0.00019178,2]
[364989434,1749385833811,-401.82318136,0.00019178,2]
[364989435,1749385833821,-440.0,0.00019178,2]
[364989436,1749385833842,-440.0,0.00019178,2]
[364989437,1749385833853,-440.0,0.00019178,2]
[364989438,1749385833863,-440.0,0.00019178,2]
[364989439,1749385833873,-440.0,0.00019178,2]
[364989440,1749385833883,-440.0,0.00019178,2]
[364989441,1749385833893,-450.0,0.00019178,2]
[364989442,1749385833904,-440.0,0.00019178,2]
[364989443,1749385833914,-404.64973997,0.00019178,2]
[364989444,1749385833924,-500.0,0.00019178,2]
[364989445,1749385833934,-500.0,0.00019178,2]
[364989446,1749385833944,-500.0,0.00019178,2]
[364989447,1749385833954,-531.82908056,0.00019178,2]
[364989448,1749385833964,-220.34110096,0.00019178,2]
[364989449,1749385833975,-440.0,0.00019178,2]
[364989450,1749385833986,-403.63129652,0.00019178,2]
[364989451,1749385833995,-440.0,0.00019178,2]
[364989452,1749385834006,-350.0,0.00019178,2]
[364989453,1749385834016,-440.0,0.00019178,2]
[364989454,1749385834027,-440.0,0.00019178,2]
[364989455,1749385834037,-440.0,0.00019178,2]
[364989456,1749385834046,-440.0,0.00019178,2]
[364989457,1749385834056,-440.0,0.00019178,2]
[364989458,1749385834067,-440.0,0.00019178,2]
[364989459,1749385834076,-450.0,0.00019178,2]
[364989460,1749385834086,-440.0,0.00019178,2]
[364989461,1749385834096,-440.0,0.00019178,2]
[364989462,1749385834106,-450.0,0.00019178,2]
[364989463,1749385834116,-357.66370567,0.00019178,2]
[364989464,1749385834126,-360.14861555,0.00019178,2]
[364989465,1749385834136,-440.0,0.00019178,2]
[364989466,1749385834145,-450.0,0.00019178,2]
[364989467,1749385834155,-440.0,0.00019178,2]
[364989468,1749385834165,-400.0,0.00019178,2]
[364989469,1749385834175,-489.79383217,0.00019178,2]
[364989470,1749385834185,-440.0,0.00019178,2]
[364989471,1749385834196,-440.0,0.00019178,2]
[364989472,1749385834206,-387.90487203,0.00019178,2]
[364989473,1749385834216,-351.41348252,0.00019178,2]
[364989474,1749385834227,-440.0,0.00019178,2]
[364989475,1749385834237,-440.0,0.00019178,2]
[364989476,1749385834246,-440.0,0.00019178,2]
[364989477,1749385834256,-440.0,0.00019178,2]
[364989478,1749385834265,-440.0,0.00019178,2]
[364989479,1749385834276,-359.8985992,0.00019178,2]
[364989480,1749385834286,-355.63649841,0.00019178,2]
[364989481,1749385834296,-440.0,0.00019178,2]
[364989482,1749385834307,-410.0,0.00019178,2]
[364989483,1749385834317,-440.0,0.00019178,2]
[364989484,1749385834327,-440.0,0.00019178,2]
[364989485,1749385834338,-357.58131252,0.00019178,2]
[364989486,1749385834353,-430.0,0.00019178,2]
[364989487,1749385834364,-440.0,0.00019178,2]
[364989488,1749385834374,-440.0,0.00019178,2]
[364989489,1749385834384,-440.0,0.00019178,2]
[364989490,1749385834394,-264.50910506,0.00019178,2]
[364989491,1749385834405,-440.0,0.00019178,2]
[364989492,1749385834415,-440.0,0.00019178,2]
[364989493,1749385834425,-430.0,0.00019178,2]
[364989494,1749385834434,-440.0,0.00019178,2]
[364989495,1749385834449,-440.0,0.00019178,2]
[364989496,1749385834459,-440.0,0.00019178,2]
[364989497,1749385834469,-440.0,0.00019178,2]
[364989498,1749385834480,-406.2834325,0.00019178,2]
[364989499,1749385834490,-400.0,0.00019178,2]
[364989500,1749385834501,-440.0,0.00019178,2]
[364989501,1749385834512,-440.0,0.00019178,2]
[364989502,1749385834524,-440.0,0.00019178,2]
[364989503,1749385834534,-440.0,0.00019178,2]
[364989504,1749385834544,-440.0,0.00019178,2]
[364989505,1749385834554,-440.0,0.00019178,2]
[364989506,1749385834564,-430.0,0.00019178,2]
[364989507,1749385834574,-500.0,0.00019178,2]
[364989508,1749385834584,-500.0,0.00019178,2]
[364989509,1749385834594,-500.0,0.00019178,2]
[364989510,1749385834604,-500.0,0.00019178,2]
[364989511,1749385834615,-500.0,0.00019178,2]
[364989512,1749385834625,-440.0,0.00019178,2]
[364989513,1749385834636,-440.0,0.00019178,2]
[364989514,1749385834647,-271.65285825,0.00019178,2]
[364989515,1749385834658,-440.0,0.00019178,2]
[364989516,1749385834668,-403.57839012,0.00019178,2]
[364989517,1749385834678,-464.94576754,0.00019178,2]
[364989518,1749385834689,-440.0,0.00019178,2]
[364989519,1749385834700,-440.0,0.00019178,2]
[364989520,1749385834710,-440.0,0.00019178,2]
[364989521,1749385834721,-403.62276726,0.00019178,2]
[364989522,1749385834731,-440.0,0.00019178,2]
[364989523,1749385834741,-440.0,0.00019178,2]
[364989524,1749385834752,-440.0,0.00019178,2]
[364989525,1749385834763,-440.0,0.00019178,2]
[364989526,1749385834773,-458.03992953,0.00019178,2]
[364989527,1749385834783,-440.0,0.00019178,2]
[364989528,1749385834793,-459.13379045,0.00019178,2]
[364989529,1749385834803,-400.0,0.00019178,2]
[364989530,1749385834814,-430.0,0.00019178,2]
[364989531,1749385834824,-400.0,0.00019178,2]
[364989532,1749385834835,-440.0,0.00019178,2]
[364989533,1749385834845,-457.51563763,0.00019178,2]
[364989534,1749385834855,-507.68222954,0.00019178,2]
[364989535,1749385834865,-436.34832837,0.00019178,2]
[364989536,1749385834875,-440.0,0.00019178,2]
[364989537,1749385834886,-440.0,0.00019178,2]
[364989538,1749385834896,-440.0,0.00019178,2]
[364989539,1749385834906,-440.0,0.00019178,2]
[364989540,1749385834916,-440.0,0.00019178,2]
[364989541,1749385834926,-500.0,0.00019178,2]
[364989542,1749385834937,-500.0,0.00019178,2]
[364989543,1749385834948,-500.0,0.00019178,2]
[364989544,1749385834958,-500.0,0.00019178,2]
[364989545,1749385834968,-400.0,0.00019178,2]
[364989546,1749385834978,-435.16852193,0.00019178,2]
[364989547,1749385834989,-440.0,0.00019178,2]
[364989548,1749385835000,-440.0,0.00019178,2]
[364989549,1749385835011,-440.0,0.00019178,2]
[364989550,1749385835025,-440.0,0.00019178,2]
[364989551,1749385835036,-450.0,0.00019178,2]
[364989552,1749385835046,-456.66,0.00019178,2]
[364989553,1749385835057,-430.0,0.00019178,2]
[364989554,1749385835069,-440.0,0.00019178,2]
[364989555,1749385835079,-457.29807494,0.00019178,2]
[364989556,1749385835089,-451.84824957,0.00019178,2]
[364989557,1749385835099,-440.0,0.00019178,2]
[364989558,1749385835108,-429.55447671,0.00019178,2]
[364989559,1749385835118,-458.09674538,0.00019178,2]
[364989560,1749385835128,-440.0,0.00019178,2]
[364989561,1749385835139,-440.0,0.00019178,2]
[364989562,1749385835150,-440.0,0.00019178,2]
[364989563,1749385835160,-440.0,0.00019178,2]
[364989564,1749385835308,-430.0,0.00019178,2]
[364989565,1749385835319,-440.0,0.00019178,2]
[364989566,1749385835329,-440.0,0.00019178,2]
[364989567,1749385835341,-440.0,0.00019178,2]
[364989568,1749385835354,-453.55654213,0.00019178,2]
[364989569,1749385835364,-400.0,0.00019178,2]
[364989570,1749385835374,-405.04950828,0.00019178,2]
[364989571,1749385835385,-440.0,0.00019178,2]
[364989572,1749385835395,-440.0,0.00019178,2]
[364989573,1749385835406,-408.18273442,0.00019178,2]
[364989574,1749385835417,-440.0,0.00019178,2]
[364989575,1749385835427,-440.0,0.00019178,2]
[364989576,1749385835437,-1613.29,0.00019178,2]
[364989577,1749385835448,-440.0,0.00019178,2]
[364989578,1749385835458,-440.0,0.00019178,2]
[364989579,1749385835467,-440.0,0.00019178,2]
[364989580,1749385835476,-440.0,0.00019178,2]
[364989581,1749385835486,-422.09807437,0.00019178,2]
[364989582,1749385835497,-450.0,0.00019178,2]
[364989583,1749385835507,-440.0,0.00019178,2]
[364989584,1749385835517,-500.0,0.00019178,2]
[364989585,1749385835526,-443.79035073,0.00019178,2]
[364989586,1749385835536,-287.27847553,0.00019178,2]
[364989587,1749385835546,-396.67976486,0.00019178,2]
[364989588,1749385835556,-440.0,0.00019178,2]
[364989589,1749385835566,-440.0,0.00019178,2]
[364989590,1749385835575,-440.0,0.00019178,2]
[364989591,1749385835585,-400.94274445,0.00019178,2]
[364989592,1749385835595,-440.0,0.00019178,2]
[364989593,1749385835604,-440.0,0.00019178,2]
[364989594,1749385835614,-440.0,0.00019178,2]
[364989595,1749385835624,-440.0,0.00019178,2]
[364989596,1749385835634,-548.36,0.00019178,2]
[364989597,1749385835643,-440.0,0.00019178,2]
[364989598,1749385835653,-440.0,0.00019178,2]
[364989599,1749385835663,-440.0,0.00019178,2]
[364989600,1749385835672,-440.0,0.00019178,2]
[364989601,1749385835682,-410.39311907,0.00019178,2]
[364989602,1749385835692,-440.0,0.00019178,2]
[364989603,1749385835702,-440.0,0.00019178,2]
[364989604,1749385835711,-440.0,0.00019178,2]
[364989605,1749385835721,-440.0,0.00019178,2]
[364989606,1749385835731,-440.0,0.00019178,2]
[364989607,1749385835741,-440.0,0.00019178,2]
[364989608,1749385835750,-204.31447388,0.00019178,2]
[364989609,1749385835760,-440.0,0.00019178,2]
[364989610,1749385835770,-440.0,0.00019178,2]
[364989611,1749385835779,-356.91734746,0.00019178,2]
[364989612,1749385835790,-440.0,0.00019178,2]
[364989613,1749385835799,-440.0,0.00019178,2]
[364989614,1749385835809,-440.0,0.00019178,2]
[364989615,1749385835819,-440.0,0.00019178,2]
[364989616,1749385835829,-440.0,0.00019178,2]
[364989617,1749385835839,-440.0,0.00019178,2]
[364989618,1749385835849,-693.01,0.00019178,2]
[364989619,1749385835859,-440.0,0.00019178,2]
[364989620,1749385835869,-440.0,0.00019178,2]
[364989621,1749385835878,-440.0,0.00019178,2]
[364989622,1749385835887,-440.0,0.00019178,2]
[364989623,1749385835898,-440.0,0.00019178,2]
[364989624,1749385835907,-440.0,0.00019178,2]
[364989625,1749385835917,-303.20136416,0.00019178,2]
[364989626,1749385835938,-440.0,0.00019178,2]
[364989627,1749385835951,-629.01,0.00019178,2]
[364989628,1749385835962,-496.10789758,0.00019178,2]
[364989629,1749385835972,-440.0,0.00019178,2]
[364989630,1749385835982,-440.0,0.00019178,2]
[364989631,1749385835993,-440.0,0.00019178,2]
[364989632,1749385836003,-440.0,0.00019178,2]
[364989633,1749385836020,-440.0,0.00019178,2]
[364989634,1749385836031,-440.0,0.00019178,2]
[364989635,1749385836041,-440.0,0.00019178,2]
[364989636,1749385836051,-440.0,0.00019178,2]
[364989637,1749385836062,-440.0,0.00019178,2]
[364989638,1749385836072,-440.0,0.00019178,2]
[364989639,1749385836082,-440.0,0.00019178,2]
[364989640,1749385836092,-440.0,0.00019178,2]
[364989641,1749385836102,-440.0,0.00019178,2]
[364989642,1749385836112,-440.0,0.00019178,2]
[364989643,1749385836123,-710.07,0.00019178,2]
[364989644,1749385836133,-440.0,0.00019178,2]
[364989645,1749385836144,-440.0,0.00019178,2]
[364989646,1749385836155,-437.32751825,0.00019178,2]
[364989647,1749385836165,-440.0,0.00019178,2]
[364989648,1749385836175,-493.26608209,0.00019178,2]
[364989649,1749385836185,-440.0,0.00019178,2]
[364989650,1749385836196,-440.0,0.00019178,2]
[364989651,1749385836207,-440.0,0.00019178,2]
[364989652,1749385836217,-440.0,0.00019178,2]
[364989653,1749385836227,-350.0,0.00019178,2]
[364989654,1749385836238,-440.0,0.00019178,2]
[364989655,1749385836247,-440.0,0.00019178,2]
[364989656,1749385836258,-734.64,0.00019178,2]
[364989657,1749385836268,-440.0,0.00019178,2]
[364989658,1749385836278,-440.0,0.00019178,2]
[364989659,1749385836288,-418.1436889,0.00019178,2]
[364989660,1749385836298,-440.0,0.00019178,2]
[364989661,1749385836308,-440.0,0.00019178,2]
[364989662,1749385836318,-440.0,0.00019178,2]
[364989663,1749385836333,-457.11767686,0.00019178,2]
[364989664,1749385836344,-440.0,0.00019178,2]
[364989665,1749385836354,-432.2685416,0.00019178,2]
[364989666,1749385836364,-440.0,0.00019178,2]
[364989667,1749385836374,-440.0,0.00019178,2]
[364989668,1749385836384,-430.0,0.00019178,2]
[364989669,1749385836395,-440.0,0.00019178,2]
[364989670,1749385836405,-440.0,0.00019178,2]
[364989671,1749385836415,-440.0,0.00019178,2]
[364989672,1749385836425,-518.22,0.00019178,2]
[364989673,1749385836436,-440.0,0.00019178,2]
[364989674,1749385836446,-440.0,0.00019178,2]
[364989675,1749385836458,-440.0,0.00019178,2]
[364989676,1749385836468,-440.0,0.00019178,2]
[364989677,1749385836478,-443.81865725,0.00019178,2]
[364989678,1749385836488,-420.0,0.00019178,2]
[364989679,1749385836498,-440.0,0.00019178,2]
[364989680,1749385836508,-353.68248777,0.00019178,2]
[364989681,1749385836518,-536.32536451,0.00019178,2]
[364989682,1749385836528,-440.0,0.00019178,2]
[364989683,1749385836538,-440.0,0.00019178,2]
[364989684,1749385836548,-440.0,0.00019178,2]
[364989685,1749385836558,-440.0,0.00019178,2]
[364989686,1749385836572,-440.0,0.00019178,2]
[364989687,1749385836583,-440.0,0.00019178,2]
[364989688,1749385836593,-440.0,0.00019178,2]
[364989689,1749385836604,-1026.07,0.00019178,2]
[364989690,1749385836614,-440.0,0.00019178,2]
[364989691,1749385836628,-440.0,0.00019178,2]
[364989692,1749385836637,-430.0,0.00019178,2]
[364989693,1749385836647,-440.0,0.00019178,2]
[364989694,1749385836658,-440.0,0.00019178,2]
[364989695,1749385836668,-440.0,0.00019178,2]
[364989696,1749385836678,-440.0,0.00019178,2]
[364989697,1749385836687,-440.0,0.00019178,2]
[364989698,1749385836697,-150.97819592,0.00019178,2]
[364989699,1749385836708,-440.0,0.00019178,2]
[364989700,1749385836718,-440.0,0.00019178,2]
[364989701,1749385836728,-440.0,0.00019178,2]
[364989702,1749385836738,-440.0,0.00019178,2]
[364989703,1749385836748,-584.73,0.00019178,2]
[364989704,1749385836758,-440.0,0.00019178,2]
[364989705,1749385836767,-521.49,0.00019178,2]
[364989706,1749385836777,-440.0,0.00019178,2]
[364989707,1749385836787,-205.69755634,0.00019178,2]
[364989708,1749385836797,-346.66999399,0.00019178,2]
[364989709,1749385836806,-440.0,0.00019178,2]
[364989710,1749385836816,-1705.48,0.00019178,2]
[364989711,1749385836826,-440.0,0.00019178,2]
[364989712,1749385836836,-440.0,0.00019178,2]